Workbook

Sheet Приладна дошка
N1: =" ІНТЕРАКТИВНИЙ БЮДЖЕТ "&Назвабюджету -> ІНТЕРАКТИВНИЙ БЮДЖЕТ СІМ’Я КОВАЛЕНКІВ 2012 Р.
A3: ='Дані діаграми'!C38 -> 4,000₴
D5: дохід
A7: ='Дані діаграми'!C39 -> 5,933₴
D9: витрати
A11: ='Дані діаграми'!D40&'Дані діаграми'!C40&"₴" -> -1933₴
D13: рух готівки

Sheet Бюджет
C1: січ | D1: лют | E1: бер | F1: кві | G1: тра | H1: чер | I1: лип | J1: сер | K1: вер | L1: жов | M1: лис | N1: гру | O1: рік | P1: у середньому
B5: Початкове сальдо | C5: 1000
B6: Загальний дохід | C6: =SUM(tbl_дохід[jan]) -> 4222 | D6: =SUM(tbl_дохід[feb]) -> 9033 | E6: =SUM(tbl_дохід[mar]) -> 4000 | F6: =SUM(tbl_дохід[apr]) -> 4045 | G6: =SUM(tbl_дохід[may]) -> 9000 | H6: =SUM(tbl_дохід[jun]) -> 1525 | I6: =SUM(tbl_дохід[jul]) -> 1500 | J6: =SUM(tbl_дохід[aug]) -> 6500 | K6: =SUM(tbl_дохід[sep]) -> 4000 | L6: =SUM(tbl_дохід[oct]) -> 4000 | M6: =SUM(tbl_дохід[nov]) -> 9000 | N6: =SUM(tbl_дохід[dec]) -> 4000 | O6: =SUM(tbl_дохід[year]) -> 60825 | P6: =O6/12 -> 5069
B7: Загальні витрати | C7: =SUM(tbl_категорія_витрат_01[jan],tbl_категорія_витрат_02[jan],tbl_категорія_витрат_03[jan],tbl_категорія_витрат_04[jan],tbl_категорія_витрат_05[jan],tbl_категорія_витрат_06[jan],tbl_категорія_витрат_07[jan],tbl_категорія_витрат_08[jan],tbl_категорія_витрат_09[jan],tbl_категорія_витрат_10[jan],tbl_категорія_витрат_11[jan],tbl_категорія_витрат_12[jan],tbl_категорія_витрат_13[jan],tbl_категорія_витрат_14[jan],tbl_категорія_витрат_15[jan]) -> 7936 | D7: =SUM(tbl_категорія_витрат_01[feb],tbl_категорія_витрат_02[feb],tbl_категорія_витрат_03[feb],tbl_категорія_витрат_04[feb],tbl_категорія_витрат_05[feb],tbl_категорія_витрат_06[feb],tbl_категорія_витрат_07[feb],tbl_категорія_витрат_08[feb],tbl_категорія_витрат_09[feb],tbl_категорія_витрат_10[feb],tbl_категорія_витрат_11[feb],tbl_категорія_витрат_12[feb],tbl_категорія_витрат_13[feb],tbl_категорія_витрат_14[feb],tbl_категорія_витрат_15[feb]) -> 5243 | E7: =SUM(tbl_категорія_витрат_01[mar],tbl_категорія_витрат_02[mar],tbl_категорія_витрат_03[mar],tbl_категорія_витрат_04[mar],tbl_категорія_витрат_05[mar],tbl_категорія_витрат_06[mar],tbl_категорія_витрат_07[mar],tbl_категорія_витрат_08[mar],tbl_категорія_витрат_09[mar],tbl_категорія_витрат_10[mar],tbl_категорія_витрат_11[mar],tbl_категорія_витрат_12[mar],tbl_категорія_витрат_13[mar],tbl_категорія_витрат_14[mar],tbl_категорія_витрат_15[mar]) -> 5933 | F7: =SUM(tbl_категорія_витрат_01[apr],tbl_категорія_витрат_02[apr],tbl_категорія_витрат_03[apr],tbl_категорія_витрат_04[apr],tbl_категорія_витрат_05[apr],tbl_категорія_витрат_06[apr],tbl_категорія_витрат_07[apr],tbl_категорія_витрат_08[apr],tbl_категорія_витрат_09[apr],tbl_категорія_витрат_10[apr],tbl_категорія_витрат_11[apr],tbl_категорія_витрат_12[apr],tbl_категорія_витрат_13[apr],tbl_категорія_витрат_14[apr],tbl_категорія_витрат_15[apr]) -> 5858 | G7: =SUM(tbl_категорія_витрат_01[may],tbl_категорія_витрат_02[may],tbl_категорія_витрат_03[may],tbl_категорія_витрат_04[may],tbl_категорія_витрат_05[may],tbl_категорія_витрат_06[may],tbl_категорія_витрат_07[may],tbl_категорія_витрат_08[may],tbl_категорія_витрат_09[may],tbl_категорія_витрат_10[may],tbl_категорія_витрат_11[may],tbl_категорія_витрат_12[may],tbl_категорія_витрат_13[may],tbl_категорія_витрат_14[may],tbl_категорія_витрат_15[may]) -> 5468 | H7: =SUM(tbl_категорія_витрат_01[jun],tbl_категорія_витрат_02[jun],tbl_категорія_витрат_03[jun],tbl_категорія_витрат_04[jun],tbl_категорія_витрат_05[jun],tbl_категорія_витрат_06[jun],tbl_категорія_витрат_07[jun],tbl_категорія_витрат_08[jun],tbl_категорія_витрат_09[jun],tbl_категорія_витрат_10[jun],tbl_категорія_витрат_11[jun],tbl_категорія_витрат_12[jun],tbl_категорія_витрат_13[jun],tbl_категорія_витрат_14[jun],tbl_категорія_витрат_15[jun]) -> 5118 | I7: =SUM(tbl_категорія_витрат_01[jul],tbl_категорія_витрат_02[jul],tbl_категорія_витрат_03[jul],tbl_категорія_витрат_04[jul],tbl_категорія_витрат_05[jul],tbl_категорія_витрат_06[jul],tbl_категорія_витрат_07[jul],tbl_категорія_витрат_08[jul],tbl_категорія_витрат_09[jul],tbl_категорія_витрат_10[jul],tbl_категорія_витрат_11[jul],tbl_категорія_витрат_12[jul],tbl_категорія_витрат_13[jul],tbl_категорія_витрат_14[jul],tbl_категорія_витрат_15[jul]) -> 5743 | J7: =SUM(tbl_категорія_витрат_01[aug],tbl_категорія_витрат_02[aug],tbl_категорія_витрат_03[aug],tbl_категорія_витрат_04[aug],tbl_категорія_витрат_05[aug],tbl_категорія_витрат_06[aug],tbl_категорія_витрат_07[aug],tbl_категорія_витрат_08[aug],tbl_категорія_витрат_09[aug],tbl_категорія_витрат_10[aug],tbl_категорія_витрат_11[aug],tbl_категорія_витрат_12[aug],tbl_категорія_витрат_13[aug],tbl_категорія_витрат_14[aug],tbl_категорія_витрат_15[aug]) -> 5353 | K7: =SUM(tbl_категорія_витрат_01[sep],tbl_категорія_витрат_02[sep],tbl_категорія_витрат_03[sep],tbl_категорія_витрат_04[sep],tbl_категорія_витрат_05[sep],tbl_категорія_витрат_06[sep],tbl_категорія_витрат_07[sep],tbl_категорія_витрат_08[sep],tbl_категорія_витрат_09[sep],tbl_категорія_витрат_10[sep],tbl_категорія_витрат_11[sep],tbl_категорія_витрат_12[sep],tbl_категорія_витрат_13[sep],tbl_категорія_витрат_14[sep],tbl_категорія_витрат_15[sep]) -> 5983 | L7: =SUM(tbl_категорія_витрат_01[oct],tbl_категорія_витрат_02[oct],tbl_категорія_витрат_03[oct],tbl_категорія_витрат_04[oct],tbl_категорія_витрат_05[oct],tbl_категорія_витрат_06[oct],tbl_категорія_витрат_07[oct],tbl_категорія_витрат_08[oct],tbl_категорія_витрат_09[oct],tbl_категорія_витрат_10[oct],tbl_категорія_витрат_11[oct],tbl_категорія_витрат_12[oct],tbl_категорія_витрат_13[oct],tbl_категорія_витрат_14[oct],tbl_категорія_витрат_15[oct]) -> 5943 | M7: =SUM(tbl_категорія_витрат_01[nov],tbl_категорія_витрат_02[nov],tbl_категорія_витрат_03[nov],tbl_категорія_витрат_04[nov],tbl_категорія_витрат_05[nov],tbl_категорія_витрат_06[nov],tbl_категорія_витрат_07[nov],tbl_категорія_витрат_08[nov],tbl_категорія_витрат_09[nov],tbl_категорія_витрат_10[nov],tbl_категорія_витрат_11[nov],tbl_категорія_витрат_12[nov],tbl_категорія_витрат_13[nov],tbl_категорія_витрат_14[nov],tbl_категорія_витрат_15[nov]) -> 5058 | N7: =SUM(tbl_категорія_витрат_01[dec],tbl_категорія_витрат_02[dec],tbl_категорія_витрат_03[dec],tbl_категорія_витрат_04[dec],tbl_категорія_витрат_05[dec],tbl_категорія_витрат_06[dec],tbl_категорія_витрат_07[dec],tbl_категорія_витрат_08[dec],tbl_категорія_витрат_09[dec],tbl_категорія_витрат_10[dec],tbl_категорія_витрат_11[dec],tbl_категорія_витрат_12[dec],tbl_категорія_витрат_13[dec],tbl_категорія_витрат_14[dec],tbl_категорія_витрат_15[dec]) -> 4958 | O7: =SUM(tbl_категорія_витрат_01[year],tbl_категорія_витрат_02[year],tbl_категорія_витрат_03[year],tbl_категорія_витрат_04[year],tbl_категорія_витрат_05[year],tbl_категорія_витрат_06[year],tbl_категорія_витрат_07[year],tbl_категорія_витрат_08[year],tbl_категорія_витрат_09[year],tbl_категорія_витрат_10[year],tbl_категорія_витрат_11[year],tbl_категорія_витрат_12[year],tbl_категорія_витрат_13[year],tbl_категорія_витрат_14[year],tbl_категорія_витрат_15[year]) -> 68594 | P7: =O7/12 -> 5716
B8: Чистий дохід | C8: =C6-C7 -> -3714 | D8: =D6-D7 -> 3790 | E8: -1933 | F8: -1813 | G8: 3532 | H8: -3593 | I8: -4243 | J8: 1147 | K8: -1983 | L8: -1943 | M8: 3942 | N8: -958 | O8: -7769 | P8: =O8/12 -> -647
B9: ЗАГАЛЬНИЙ РУХ ГОТІВКИ | C9: =C5+C6-C7 -> -2714 | D9: =C9+D6-D7 -> 1076 | E9: =D9+E6-E7 -> -857 | F9: -2670 | G9: 862 | H9: -2731 | I9: -6974 | J9: -5827 | K9: -7810 | L9: -9753 | M9: -5811 | N9: -6769
B12: дохід
B13: Заробітна плата | C13: 4000 | D13: 4000 | E13: 4000 | F13: 4000 | G13: 4000 | H13: 1000 | I13: 1000 | J13: 1000 | K13: 4000 | L13: 4000 | M13: 4000 | N13: 4000 | O13: =SUM(tbl_дохід[[#This Row],[jan]:[dec]]) -> 39000 | P13: =tbl_дохід[[#This Row],[year]]/12 -> 3250
B14: Відсотковий дохід | C14: 222 | D14: 33 | F14: 45 | H14: 25 | O14: =SUM(tbl_дохід[[#This Row],[jan]:[dec]]) -> 325 | P14: =tbl_дохід[[#This Row],[year]]/12 -> 27
B15: Дивіденди | D15: 5000 | G15: 5000 | J15: 5000 | M15: 5000 | O15: =SUM(tbl_дохід[[#This Row],[jan]:[dec]]) -> 20000 | P15: =tbl_дохід[[#This Row],[year]]/12 -> 1667
B16: виплати та компенсації | H16: 500 | I16: 500 | J16: 500 | O16: =SUM(tbl_дохід[[#This Row],[jan]:[dec]]) -> 1500 | P16: =tbl_дохід[[#This Row],[year]]/12 -> 125
B17: Інше | O17: =SUM(tbl_дохід[[#This Row],[jan]:[dec]]) -> 0 | P17: =tbl_дохід[[#This Row],[year]]/12 -> 0
B18: ЗАГАЛЬНИЙ ДОХІД | C18: =SUM(tbl_дохід[jan]) -> 4222 | D18: =SUM(tbl_дохід[feb]) -> 9033 | E18: =SUM(tbl_дохід[mar]) -> 4000 | F18: =SUM(tbl_дохід[apr]) -> 4045 | G18: =SUM(tbl_дохід[may]) -> 9000 | H18: =SUM(tbl_дохід[jun]) -> 1525 | I18: =SUM(tbl_дохід[jul]) -> 1500 | J18: =SUM(tbl_дохід[aug]) -> 6500 | K18: =SUM(tbl_дохід[sep]) -> 4000 | L18: =SUM(tbl_дохід[oct]) -> 4000 | M18: =SUM(tbl_дохід[nov]) -> 9000 | N18: =SUM(tbl_дохід[dec]) -> 4000 | O18: =SUM(tbl_дохід[year]) -> 60825 | P18: =tbl_дохід[[#Totals],[year]]/12 -> 5069
B21: житло
B22: Кредит або орендна плата | C22: 850 | D22: 850 | E22: 850 | F22: 850 | G22: 850 | H22: 850 | I22: 850 | J22: 850 | K22: 850 | L22: 850 | M22: 900 | N22: 900 | O22: =SUM(tbl_категорія_витрат_01[[#This Row],[jan]:[dec]]) -> 10300 | P22: =tbl_категорія_витрат_01[[#This Row],[year]]/12 -> 858
B23: Електроенергія | C23: 200 | D23: 200 | E23: 175 | F23: 150 | G23: 150 | H23: 175 | I23: 225 | J23: 275 | K23: 200 | L23: 150 | M23: 150 | N23: 150 | O23: =SUM(tbl_категорія_витрат_01[[#This Row],[jan]:[dec]]) -> 2200 | P23: =tbl_категорія_витрат_01[[#This Row],[year]]/12 -> 183
B24: Телефон | C24: 50 | D24: 50 | E24: 100 | F24: 100 | G24: 50 | H24: 50 | I24: 100 | J24: 100 | K24: 50 | L24: 50 | M24: 50 | N24: 50 | O24: =SUM(tbl_категорія_витрат_01[[#This Row],[jan]:[dec]]) -> 800 | P24: =tbl_категорія_витрат_01[[#This Row],[year]]/12 -> 67
B25: Кабельне або супутникове телебачення | C25: 69 | D25: 69 | E25: 69 | F25: 69 | G25: 69 | H25: 69 | I25: 69 | J25: 69 | K25: 69 | L25: 69 | M25: 69 | N25: 69 | O25: =SUM(tbl_категорія_витрат_01[[#This Row],[jan]:[dec]]) -> 828 | P25: =tbl_категорія_витрат_01[[#This Row],[year]]/12 -> 69
B26: Інтернет | C26: 39 | D26: 39 | E26: 39 | F26: 39 | G26: 39 | H26: 39 | I26: 39 | J26: 39 | K26: 39 | L26: 39 | M26: 39 | N26: 39 | O26: =SUM(tbl_категорія_витрат_01[[#This Row],[jan]:[dec]]) -> 468 | P26: =tbl_категорія_витрат_01[[#This Row],[year]]/12 -> 39
B27: =UPPER("РАЗОМ ПО " & B21) -> РАЗОМ ПО ЖИТЛО | C27: =SUM(tbl_категорія_витрат_01[jan]) -> 1208 | D27: =SUM(tbl_категорія_витрат_01[feb]) -> 1208 | E27: =SUM(tbl_категорія_витрат_01[mar]) -> 1233 | F27: =SUM(tbl_категорія_витрат_01[apr]) -> 1208 | G27: =SUM(tbl_категорія_витрат_01[may]) -> 1158 | H27: =SUM(tbl_категорія_витрат_01[jun]) -> 1183 | I27: =SUM(tbl_категорія_витрат_01[jul]) -> 1283 | J27: =SUM(tbl_категорія_витрат_01[aug]) -> 1333 | K27: =SUM(tbl_категорія_витрат_01[sep]) -> 1208 | L27: =SUM(tbl_категорія_витрат_01[oct]) -> 1158 | M27: =SUM(tbl_категорія_витрат_01[nov]) -> 1208 | N27: =SUM(tbl_категорія_витрат_01[dec]) -> 1208 | O27: =SUM(tbl_категорія_витрат_01[year]) -> 14596 | P27: =tbl_категорія_витрат_01[[#Totals],[year]]/12 -> 1216
B30: щоденні потреби
B31: Бакалія | C31: 345 | D31: 250 | E31: 200 | F31: 400 | G31: 350 | H31: 250 | I31: 400 | J31: 350 | K31: 250 | L31: 400 | M31: 350 | N31: 250 | O31: =SUM(tbl_категорія_витрат_02[[#This Row],[jan]:[dec]]) -> 3795 | P31: =tbl_категорія_витрат_02[[#This Row],[year]]/12 -> 316
B32: Одяг | C32: 300 | F32: 300 | I32: 300 | L32: 300 | O32: =SUM(tbl_категорія_витрат_02[[#This Row],[jan]:[dec]]) -> 1200 | P32: =tbl_категорія_витрат_02[[#This Row],[year]]/12 -> 100
B33: Ресторан або їдальня | C33: 125 | D33: 125 | E33: 300 | F33: 125 | G33: 125 | H33: 200 | I33: 125 | J33: 125 | K33: 125 | L33: 125 | M33: 125 | N33: 125 | O33: =SUM(tbl_категорія_витрат_02[[#This Row],[jan]:[dec]]) -> 1750 | P33: =tbl_категорія_витрат_02[[#This Row],[year]]/12 -> 146
B34: Салон краси та перукарня | C34: 25 | E34: 50 | G34: 25 | I34: 50 | K34: 25 | M34: 100 | O34: =SUM(tbl_категорія_витрат_02[[#This Row],[jan]:[dec]]) -> 275 | P34: =tbl_категорія_витрат_02[[#This Row],[year]]/12 -> 23
B35: Інше | O35: =SUM(tbl_категорія_витрат_02[[#This Row],[jan]:[dec]]) -> 0 | P35: =tbl_категорія_витрат_02[[#This Row],[year]]/12 -> 0
B36: =UPPER("РАЗОМ ПО " & B30) -> РАЗОМ ПО ЩОДЕННІ ПОТРЕБИ | C36: =SUM(tbl_категорія_витрат_02[jan]) -> 795 | D36: =SUM(tbl_категорія_витрат_02[feb]) -> 375 | E36: =SUM(tbl_категорія_витрат_02[mar]) -> 550 | F36: =SUM(tbl_категорія_витрат_02[apr]) -> 825 | G36: =SUM(tbl_категорія_витрат_02[may]) -> 500 | H36: =SUM(tbl_категорія_витрат_02[jun]) -> 450 | I36: =SUM(tbl_категорія_витрат_02[jul]) -> 875 | J36: =SUM(tbl_категорія_витрат_02[aug]) -> 475 | K36: =SUM(tbl_категорія_витрат_02[sep]) -> 400 | L36: =SUM(tbl_категорія_витрат_02[oct]) -> 825 | M36: =SUM(tbl_категорія_витрат_02[nov]) -> 575 | N36: =SUM(tbl_категорія_витрат_02[dec]) -> 375 | O36: =SUM(tbl_категорія_витрат_02[year]) -> 7020 | P36: =tbl_категорія_витрат_02[[#Totals],[year]]/12 -> 585
B39: діти
B40: Шкільне приладдя | C40: 123 | E40: 100 | J40: 345 | O40: =SUM(tbl_категорія_витрат_03[[#This Row],[jan]:[dec]]) -> 568 | P40: =tbl_категорія_витрат_03[[#This Row],[year]]/12 -> 47
B41: Одяг | D41: 100 | G41: 100 | K41: 100 | N41: 100 | O41: =SUM(tbl_категорія_витрат_03[[#This Row],[jan]:[dec]]) -> 400 | P41: =tbl_категорія_витрат_03[[#This Row],[year]]/12 -> 33
B42: Шкільний обід | C42: 50 | D42: 50 | E42: 50 | F42: 50 | G42: 50 | H42: 50 | K42: 50 | L42: 50 | M42: 50 | N42: 50 | O42: =SUM(tbl_категорія_витрат_03[[#This Row],[jan]:[dec]]) -> 500 | P42: =tbl_категорія_витрат_03[[#This Row],[year]]/12 -> 42
B43: Лікування | C43: 200 | D43: 200 | E43: 200 | F43: 200 | G43: 200 | H43: 200 | I43: 200 | J43: 200 | K43: 200 | L43: 200 | M43: 200 | N43: 200 | O43: =SUM(tbl_категорія_витрат_03[[#This Row],[jan]:[dec]]) -> 2400 | P43: =tbl_категорія_витрат_03[[#This Row],[year]]/12 -> 200
B44: Інше | C44: 2000 | D44: 150 | H44: 200 | L44: 100 | O44: =SUM(tbl_категорія_витрат_03[[#This Row],[jan]:[dec]]) -> 2450 | P44: =tbl_категорія_витрат_03[[#This Row],[year]]/12 -> 204
B45: =UPPER("РАЗОМ ПО " & B39) -> РАЗОМ ПО ДІТИ | C45: =SUM(tbl_категорія_витрат_03[jan]) -> 2373 | D45: =SUM(tbl_категорія_витрат_03[feb]) -> 500 | E45: =SUM(tbl_категорія_витрат_03[mar]) -> 350 | F45: =SUM(tbl_категорія_витрат_03[apr]) -> 250 | G45: =SUM(tbl_категорія_витрат_03[may]) -> 350 | H45: =SUM(tbl_категорія_витрат_03[jun]) -> 450 | I45: =SUM(tbl_категорія_витрат_03[jul]) -> 200 | J45: =SUM(tbl_категорія_витрат_03[aug]) -> 545 | K45: =SUM(tbl_категорія_витрат_03[sep]) -> 350 | L45: =SUM(tbl_категорія_витрат_03[oct]) -> 350 | M45: =SUM(tbl_категорія_витрат_03[nov]) -> 250 | N45: =SUM(tbl_категорія_витрат_03[dec]) -> 350 | O45: =SUM(tbl_категорія_витрат_03[year]) -> 6318 | P45: =tbl_категорія_витрат_03[[#Totals],[year]]/12 -> 527
B48: транспорт
B49: Витрати на утримання авто | C49: 600 | D49: 600 | E49: 600 | F49: 600 | G49: 600 | H49: 600 | I49: 600 | J49: 600 | K49: 600 | L49: 600 | M49: 600 | N49: 600 | O49: =SUM(tbl_категорія_витрат_04[[#This Row],[jan]:[dec]]) -> 7200 | P49: =tbl_категорія_витрат_04[[#This Row],[year]]/12 -> 600
B50: Бензин | C50: 325 | D50: 325 | E50: 325 | F50: 325 | G50: 325 | H50: 500 | I50: 500 | J50: 500 | K50: 325 | L50: 325 | M50: 325 | N50: 325 | O50: =SUM(tbl_категорія_витрат_04[[#This Row],[jan]:[dec]]) -> 4425 | P50: =tbl_категорія_витрат_04[[#This Row],[year]]/12 -> 369
B51: Ремонт | D51: 100 | F51: 100 | H51: 100 | J51: 100 | L51: 100 | O51: =SUM(tbl_категорія_витрат_04[[#This Row],[jan]:[dec]]) -> 500 | P51: =tbl_категорія_витрат_04[[#This Row],[year]]/12 -> 42
B52: Реєстрація | C52: 185 | K52: 225 | O52: =SUM(tbl_категорія_витрат_04[[#This Row],[jan]:[dec]]) -> 410 | P52: =tbl_категорія_витрат_04[[#This Row],[year]]/12 -> 34
B53: Інше | G53: 400 | O53: =SUM(tbl_категорія_витрат_04[[#This Row],[jan]:[dec]]) -> 400 | P53: =tbl_категорія_витрат_04[[#This Row],[year]]/12 -> 33
B54: =UPPER("РАЗОМ ПО " & B48) -> РАЗОМ ПО ТРАНСПОРТ | C54: =SUM(tbl_категорія_витрат_04[jan]) -> 1110 | D54: =SUM(tbl_категорія_витрат_04[feb]) -> 1025 | E54: =SUM(tbl_категорія_витрат_04[mar]) -> 925 | F54: =SUM(tbl_категорія_витрат_04[apr]) -> 1025 | G54: =SUM(tbl_категорія_витрат_04[may]) -> 1325 | H54: =SUM(tbl_категорія_витрат_04[jun]) -> 1200 | I54: =SUM(tbl_категорія_витрат_04[jul]) -> 1100 | J54: =SUM(tbl_категорія_витрат_04[aug]) -> 1200 | K54: =SUM(tbl_категорія_витрат_04[sep]) -> 1150 | L54: =SUM(tbl_категорія_витрат_04[oct]) -> 1025 | M54: =SUM(tbl_категорія_витрат_04[nov]) -> 925 | N54: =SUM(tbl_категорія_витрат_04[dec]) -> 925 | O54: =SUM(tbl_категорія_витрат_04[year]) -> 12935 | P54: =tbl_категорія_витрат_04[[#Totals],[year]]/12 -> 1078
B57: лікування
B58: Терапевт або стоматолог | D58: 35 | G58: 35 | H58: 35 | I58: 35 | L58: 35 | O58: =SUM(tbl_категорія_витрат_05[[#This Row],[jan]:[dec]]) -> 175 | P58: =tbl_категорія_витрат_05[[#This Row],[year]]/12 -> 15
B59: Лікування та ліки | C59: 25 | D59: 25 | E59: 25 | F59: 25 | G59: 25 | H59: 25 | I59: 25 | J59: 25 | K59: 25 | L59: 25 | M59: 25 | N59: 25 | O59: =SUM(tbl_категорія_витрат_05[[#This Row],[jan]:[dec]]) -> 300 | P59: =tbl_категорія_витрат_05[[#This Row],[year]]/12 -> 25
B60: Інше | E60: 150 | K60: 150 | O60: =SUM(tbl_категорія_витрат_05[[#This Row],[jan]:[dec]]) -> 300 | P60: =tbl_категорія_витрат_05[[#This Row],[year]]/12 -> 25
B61: =UPPER("РАЗОМ ПО " & B57) -> РАЗОМ ПО ЛІКУВАННЯ | C61: =SUM(tbl_категорія_витрат_05[jan]) -> 25 | D61: =SUM(tbl_категорія_витрат_05[feb]) -> 60 | E61: =SUM(tbl_категорія_витрат_05[mar]) -> 175 | F61: =SUM(tbl_категорія_витрат_05[apr]) -> 25 | G61: =SUM(tbl_категорія_витрат_05[may]) -> 60 | H61: =SUM(tbl_категорія_витрат_05[jun]) -> 60 | I61: =SUM(tbl_категорія_витрат_05[jul]) -> 60 | J61: =SUM(tbl_категорія_витрат_05[aug]) -> 25 | K61: =SUM(tbl_категорія_витрат_05[sep]) -> 175 | L61: =SUM(tbl_категорія_витрат_05[oct]) -> 60 | M61: =SUM(tbl_категорія_витрат_05[nov]) -> 25 | N61: =SUM(tbl_категорія_витрат_05[dec]) -> 25 | O61: =SUM(tbl_категорія_витрат_05[year]) -> 775 | P61: =tbl_категорія_витрат_05[[#Totals],[year]]/12 -> 65
B64: страхування
B65: Авто | C65: 150 | D65: 150 | E65: 150 | F65: 150 | G65: 150 | H65: 150 | I65: 150 | J65: 150 | K65: 150 | L65: 150 | M65: 150 | N65: 150 | O65: =SUM(tbl_категорія_витрат_06[[#This Row],[jan]:[dec]]) -> 1800 | P65: =tbl_категорія_витрат_06[[#This Row],[year]]/12 -> 150
B66: Здоров’я | C66: 675 | D66: 675 | E66: 675 | F66: 675 | G66: 675 | H66: 675 | I66: 675 | J66: 675 | K66: 675 | L66: 675 | M66: 675 | N66: 675 | O66: =SUM(tbl_категорія_витрат_06[[#This Row],[jan]:[dec]]) -> 8100 | P66: =tbl_категорія_витрат_06[[#This Row],[year]]/12 -> 675
B67: Життя | C67: 150 | D67: 150 | E67: 150 | F67: 150 | G67: 150 | H67: 150 | I67: 150 | J67: 150 | K67: 150 | L67: 150 | M67: 150 | N67: 150 | O67: =SUM(tbl_категорія_витрат_06[[#This Row],[jan]:[dec]]) -> 1800 | P67: =tbl_категорія_витрат_06[[#This Row],[year]]/12 -> 150
B68: =UPPER("РАЗОМ ПО " & B64) -> РАЗОМ ПО СТРАХУВАННЯ | C68: =SUM(tbl_категорія_витрат_06[jan]) -> 975 | D68: =SUM(tbl_категорія_витрат_06[feb]) -> 975 | E68: =SUM(tbl_категорія_витрат_06[mar]) -> 975 | F68: =SUM(tbl_категорія_витрат_06[apr]) -> 975 | G68: =SUM(tbl_категорія_витрат_06[may]) -> 975 | H68: =SUM(tbl_категорія_витрат_06[jun]) -> 975 | I68: =SUM(tbl_категорія_витрат_06[jul]) -> 975 | J68: =SUM(tbl_категорія_витрат_06[aug]) -> 975 | K68: =SUM(tbl_категорія_витрат_06[sep]) -> 975 | L68: =SUM(tbl_категорія_витрат_06[oct]) -> 975 | M68: =SUM(tbl_категорія_витрат_06[nov]) -> 975 | N68: =SUM(tbl_категорія_витрат_06[dec]) -> 975 | O68: =SUM(tbl_категорія_витрат_06[year]) -> 11700 | P68: =tbl_категорія_витрат_06[[#Totals],[year]]/12 -> 975
B71: освіта
B72: Плата за навчання | E72: 400 | K72: 400 | O72: =SUM(tbl_категорія_витрат_07[[#This Row],[jan]:[dec]]) -> 800 | P72: =tbl_категорія_витрат_07[[#This Row],[year]]/12 -> 67
B73: Книжки | E73: 225 | K73: 225 | O73: =SUM(tbl_категорія_витрат_07[[#This Row],[jan]:[dec]]) -> 450 | P73: =tbl_категорія_витрат_07[[#This Row],[year]]/12 -> 38
B74: Інше | O74: =SUM(tbl_категорія_витрат_07[[#This Row],[jan]:[dec]]) -> 0 | P74: =tbl_категорія_витрат_07[[#This Row],[year]]/12 -> 0
B75: =UPPER("РАЗОМ ПО " & B71) -> РАЗОМ ПО ОСВІТА | C75: =SUM(tbl_категорія_витрат_07[jan]) -> 0 | D75: =SUM(tbl_категорія_витрат_07[feb]) -> 0 | E75: =SUM(tbl_категорія_витрат_07[mar]) -> 625 | F75: =SUM(tbl_категорія_витрат_07[apr]) -> 0 | G75: =SUM(tbl_категорія_витрат_07[may]) -> 0 | H75: =SUM(tbl_категорія_витрат_07[jun]) -> 0 | I75: =SUM(tbl_категорія_витрат_07[jul]) -> 0 | J75: =SUM(tbl_категорія_витрат_07[aug]) -> 0 | K75: =SUM(tbl_категорія_витрат_07[sep]) -> 625 | L75: =SUM(tbl_категорія_витрат_07[oct]) -> 0 | M75: =SUM(tbl_категорія_витрат_07[nov]) -> 0 | N75: =SUM(tbl_категорія_витрат_07[dec]) -> 0 | O75: =SUM(tbl_категорія_витрат_07[year]) -> 1250 | P75: =tbl_категорія_витрат_07[[#Totals],[year]]/12 -> 104
B78: добродійність
B79: Подарунки | D79: 100 | H79: 100 | L79: 100 | O79: =SUM(tbl_категорія_витрат_08[[#This Row],[jan]:[dec]]) -> 300 | P79: =tbl_категорія_витрат_08[[#This Row],[year]]/12 -> 25
B80: Пожертви | E80: 100 | G80: 100 | I80: 100 | K80: 100 | M80: 100 | O80: =SUM(tbl_категорія_витрат_08[[#This Row],[jan]:[dec]]) -> 500 | P80: =tbl_категорія_витрат_08[[#This Row],[year]]/12 -> 42
B81: Інше | F81: 100 | J81: 100 | N81: 100 | O81: =SUM(tbl_категорія_витрат_08[[#This Row],[jan]:[dec]]) -> 300 | P81: =tbl_категорія_витрат_08[[#This Row],[year]]/12 -> 25
B82: =UPPER("РАЗОМ ПО " & B78) -> РАЗОМ ПО ДОБРОДІЙНІСТЬ | C82: =SUM(tbl_категорія_витрат_08[jan]) -> 0 | D82: =SUM(tbl_категорія_витрат_08[feb]) -> 100 | E82: =SUM(tbl_категорія_витрат_08[mar]) -> 100 | F82: =SUM(tbl_категорія_витрат_08[apr]) -> 100 | G82: =SUM(tbl_категорія_витрат_08[may]) -> 100 | H82: =SUM(tbl_категорія_витрат_08[jun]) -> 100 | I82: =SUM(tbl_категорія_витрат_08[jul]) -> 100 | J82: =SUM(tbl_категорія_витрат_08[aug]) -> 100 | K82: =SUM(tbl_категорія_витрат_08[sep]) -> 100 | L82: =SUM(tbl_категорія_витрат_08[oct]) -> 100 | M82: =SUM(tbl_категорія_витрат_08[nov]) -> 100 | N82: =SUM(tbl_категорія_витрат_08[dec]) -> 100 | O82: =SUM(tbl_категорія_витрат_08[year]) -> 1100 | P82: =tbl_категорія_витрат_08[[#Totals],[year]]/12 -> 92
B85: заощадження
B86: Страховий фонд | C86: 100 | D86: 100 | E86: 100 | F86: 100 | G86: 100 | K86: 100 | L86: 100 | M86: 100 | N86: 100 | O86: =SUM(tbl_категорія_витрат_09[[#This Row],[jan]:[dec]]) -> 900 | P86: =tbl_категорія_витрат_09[[#This Row],[year]]/12 -> 75
B87: Пенсія | C87: 500 | D87: 500 | E87: 500 | F87: 500 | G87: 500 | H87: 500 | I87: 500 | J87: 500 | K87: 500 | L87: 500 | M87: 500 | N87: 500 | O87: =SUM(tbl_категорія_витрат_09[[#This Row],[jan]:[dec]]) -> 6000 | P87: =tbl_категорія_витрат_09[[#This Row],[year]]/12 -> 500
B88: Перерахування до заощаджень | C88: 200 | D88: 200 | E88: 200 | F88: 200 | G88: 200 | K88: 200 | L88: 200 | M88: 200 | N88: 200 | O88: =SUM(tbl_категорія_витрат_09[[#This Row],[jan]:[dec]]) -> 1800 | P88: =tbl_категорія_витрат_09[[#This Row],[year]]/12 -> 150
B89: =UPPER("ЗАГАЛЬНІ " & B85) -> ЗАГАЛЬНІ ЗАОЩАДЖЕННЯ | C89: =SUM(tbl_категорія_витрат_09[jan]) -> 800 | D89: =SUM(tbl_категорія_витрат_09[feb]) -> 800 | E89: =SUM(tbl_категорія_витрат_09[mar]) -> 800 | F89: =SUM(tbl_категорія_витрат_09[apr]) -> 800 | G89: =SUM(tbl_категорія_витрат_09[may]) -> 800 | H89: =SUM(tbl_категорія_витрат_09[jun]) -> 500 | I89: =SUM(tbl_категорія_витрат_09[jul]) -> 500 | J89: =SUM(tbl_категорія_витрат_09[aug]) -> 500 | K89: =SUM(tbl_категорія_витрат_09[sep]) -> 800 | L89: =SUM(tbl_категорія_витрат_09[oct]) -> 800 | M89: =SUM(tbl_категорія_витрат_09[nov]) -> 800 | N89: =SUM(tbl_категорія_витрат_09[dec]) -> 800 | O89: =SUM(tbl_категорія_витрат_09[year]) -> 8700 | P89: =tbl_категорія_витрат_09[[#Totals],[year]]/12 -> 725
B92: грошові зобов’язання
B93: Кредитна картка 1 | C93: 145 | D93: 145 | E93: 145 | F93: 145 | G93: 145 | H93: 145 | I93: 145 | J93: 145 | K93: 145 | L93: 145 | M93: 145 | N93: 145 | O93: =SUM(tbl_категорія_витрат_10[[#This Row],[jan]:[dec]]) -> 1740 | P93: =tbl_категорія_витрат_10[[#This Row],[year]]/12 -> 145
B94: Податки | C94: 450 | F94: 450 | I94: 450 | L94: 450 | O94: =SUM(tbl_категорія_витрат_10[[#This Row],[jan]:[dec]]) -> 1800 | P94: =tbl_категорія_витрат_10[[#This Row],[year]]/12 -> 150
B95: Позика на навчання | C95: 55 | D95: 55 | E95: 55 | F95: 55 | G95: 55 | H95: 55 | I95: 55 | J95: 55 | K95: 55 | L95: 55 | M95: 55 | N95: 55 | O95: =SUM(tbl_категорія_витрат_10[[#This Row],[jan]:[dec]]) -> 660 | P95: =tbl_категорія_витрат_10[[#This Row],[year]]/12 -> 55
B96: =UPPER("ЗАГАЛЬНІ " & B92) -> ЗАГАЛЬНІ ГРОШОВІ ЗОБОВ’ЯЗАННЯ | C96: =SUM(tbl_категорія_витрат_10[jan]) -> 650 | D96: =SUM(tbl_категорія_витрат_10[feb]) -> 200 | E96: =SUM(tbl_категорія_витрат_10[mar]) -> 200 | F96: =SUM(tbl_категорія_витрат_10[apr]) -> 650 | G96: =SUM(tbl_категорія_витрат_10[may]) -> 200 | H96: =SUM(tbl_категорія_витрат_10[jun]) -> 200 | I96: =SUM(tbl_категорія_витрат_10[jul]) -> 650 | J96: =SUM(tbl_категорія_витрат_10[aug]) -> 200 | K96: =SUM(tbl_категорія_витрат_10[sep]) -> 200 | L96: =SUM(tbl_категорія_витрат_10[oct]) -> 650 | M96: =SUM(tbl_категорія_витрат_10[nov]) -> 200 | N96: =SUM(tbl_категорія_витрат_10[dec]) -> 200 | O96: =SUM(tbl_категорія_витрат_10[year]) -> 4200 | P96: =tbl_категорія_витрат_10[[#Totals],[year]]/12 -> 350
O100: =SUM(tbl_категорія_витрат_11[[#This Row],[jan]:[dec]]) -> 0 | P100: =tbl_категорія_витрат_11[[#This Row],[year]]/12 -> 0
O101: =SUM(tbl_категорія_витрат_11[[#This Row],[jan]:[dec]]) -> 0 | P101: =tbl_категорія_витрат_11[[#This Row],[year]]/12 -> 0
O102: =SUM(tbl_категорія_витрат_11[[#This Row],[jan]:[dec]]) -> 0 | P102: =tbl_категорія_витрат_11[[#This Row],[year]]/12 -> 0
B103: =UPPER("РАЗОМ " & B99) -> РАЗОМ | C103: =SUM(tbl_категорія_витрат_11[jan]) -> 0 | D103: =SUM(tbl_категорія_витрат_11[feb]) -> 0 | E103: =SUM(tbl_категорія_витрат_11[mar]) -> 0 | F103: =SUM(tbl_категорія_витрат_11[apr]) -> 0 | G103: =SUM(tbl_категорія_витрат_11[may]) -> 0 | H103: =SUM(tbl_категорія_витрат_11[jun]) -> 0 | I103: =SUM(tbl_категорія_витрат_11[jul]) -> 0 | J103: =SUM(tbl_категорія_витрат_11[aug]) -> 0 | K103: =SUM(tbl_категорія_витрат_11[sep]) -> 0 | L103: =SUM(tbl_категорія_витрат_11[oct]) -> 0 | M103: =SUM(tbl_категорія_витрат_11[nov]) -> 0 | N103: =SUM(tbl_категорія_витрат_11[dec]) -> 0 | O103: =SUM(tbl_категорія_витрат_11[year]) -> 0 | P103: =tbl_категорія_витрат_11[[#Totals],[year]]/12 -> 0
O107: =SUM(tbl_категорія_витрат_12[[#This Row],[jan]:[dec]]) -> 0 | P107: =tbl_категорія_витрат_12[[#This Row],[year]]/12 -> 0
O108: =SUM(tbl_категорія_витрат_12[[#This Row],[jan]:[dec]]) -> 0 | P108: =tbl_категорія_витрат_12[[#This Row],[year]]/12 -> 0
O109: =SUM(tbl_категорія_витрат_12[[#This Row],[jan]:[dec]]) -> 0 | P109: =tbl_категорія_витрат_12[[#This Row],[year]]/12 -> 0
B110: =UPPER("РАЗОМ " & B106) -> РАЗОМ | C110: =SUM(tbl_категорія_витрат_12[jan]) -> 0 | D110: =SUM(tbl_категорія_витрат_12[feb]) -> 0 | E110: =SUM(tbl_категорія_витрат_12[mar]) -> 0 | F110: =SUM(tbl_категорія_витрат_12[apr]) -> 0 | G110: =SUM(tbl_категорія_витрат_12[may]) -> 0 | H110: =SUM(tbl_категорія_витрат_12[jun]) -> 0 | I110: =SUM(tbl_категорія_витрат_12[jul]) -> 0 | J110: =SUM(tbl_категорія_витрат_12[aug]) -> 0 | K110: =SUM(tbl_категорія_витрат_12[sep]) -> 0 | L110: =SUM(tbl_категорія_витрат_12[oct]) -> 0 | M110: =SUM(tbl_категорія_витрат_12[nov]) -> 0 | N110: =SUM(tbl_категорія_витрат_12[dec]) -> 0 | O110: =SUM(tbl_категорія_витрат_12[year]) -> 0 | P110: =tbl_категорія_витрат_12[[#Totals],[year]]/12 -> 0
O114: =SUM(tbl_категорія_витрат_13[[#This Row],[jan]:[dec]]) -> 0 | P114: =tbl_категорія_витрат_13[[#This Row],[year]]/12 -> 0
O115: =SUM(tbl_категорія_витрат_13[[#This Row],[jan]:[dec]]) -> 0 | P115: =tbl_категорія_витрат_13[[#This Row],[year]]/12 -> 0
O116: =SUM(tbl_категорія_витрат_13[[#This Row],[jan]:[dec]]) -> 0 | P116: =tbl_категорія_витрат_13[[#This Row],[year]]/12 -> 0
B117: =UPPER("РАЗОМ " & B113) -> РАЗОМ | C117: =SUM(tbl_категорія_витрат_13[jan]) -> 0 | D117: =SUM(tbl_категорія_витрат_13[feb]) -> 0 | E117: =SUM(tbl_категорія_витрат_13[mar]) -> 0 | F117: =SUM(tbl_категорія_витрат_13[apr]) -> 0 | G117: =SUM(tbl_категорія_витрат_13[may]) -> 0 | H117: =SUM(tbl_категорія_витрат_13[jun]) -> 0 | I117: =SUM(tbl_категорія_витрат_13[jul]) -> 0 | J117: =SUM(tbl_категорія_витрат_13[aug]) -> 0 | K117: =SUM(tbl_категорія_витрат_13[sep]) -> 0 | L117: =SUM(tbl_категорія_витрат_13[oct]) -> 0 | M117: =SUM(tbl_категорія_витрат_13[nov]) -> 0 | N117: =SUM(tbl_категорія_витрат_13[dec]) -> 0 | O117: =SUM(tbl_категорія_витрат_13[year]) -> 0 | P117: =tbl_категорія_витрат_13[[#Totals],[year]]/12 -> 0
O121: =SUM(tbl_категорія_витрат_14[[#This Row],[jan]:[dec]]) -> 0 | P121: =tbl_категорія_витрат_14[[#This Row],[year]]/12 -> 0
O122: =SUM(tbl_категорія_витрат_14[[#This Row],[jan]:[dec]]) -> 0 | P122: =tbl_категорія_витрат_14[[#This Row],[year]]/12 -> 0
O123: =SUM(tbl_категорія_витрат_14[[#This Row],[jan]:[dec]]) -> 0 | P123: =tbl_категорія_витрат_14[[#This Row],[year]]/12 -> 0
B124: =UPPER("РАЗОМ " & B120) -> РАЗОМ | C124: =SUM(tbl_категорія_витрат_14[jan]) -> 0 | D124: =SUM(tbl_категорія_витрат_14[feb]) -> 0 | E124: =SUM(tbl_категорія_витрат_14[mar]) -> 0 | F124: =SUM(tbl_категорія_витрат_14[apr]) -> 0 | G124: =SUM(tbl_категорія_витрат_14[may]) -> 0 | H124: =SUM(tbl_категорія_витрат_14[jun]) -> 0 | I124: =SUM(tbl_категорія_витрат_14[jul]) -> 0 | J124: =SUM(tbl_категорія_витрат_14[aug]) -> 0 | K124: =SUM(tbl_категорія_витрат_14[sep]) -> 0 | L124: =SUM(tbl_категорія_витрат_14[oct]) -> 0 | M124: =SUM(tbl_категорія_витрат_14[nov]) -> 0 | N124: =SUM(tbl_категорія_витрат_14[dec]) -> 0 | O124: =SUM(tbl_категорія_витрат_14[year]) -> 0 | P124: =tbl_категорія_витрат_14[[#Totals],[year]]/12 -> 0
O128: =SUM(tbl_категорія_витрат_15[[#This Row],[jan]:[dec]]) -> 0 | P128: =tbl_категорія_витрат_15[[#This Row],[year]]/12 -> 0
O129: =SUM(tbl_категорія_витрат_15[[#This Row],[jan]:[dec]]) -> 0 | P129: =tbl_категорія_витрат_15[[#This Row],[year]]/12 -> 0
O130: =SUM(tbl_категорія_витрат_15[[#This Row],[jan]:[dec]]) -> 0 | P130: =tbl_категорія_витрат_15[[#This Row],[year]]/12 -> 0
B131: =UPPER("РАЗОМ " & B127) -> РАЗОМ | C131: =SUM(tbl_категорія_витрат_15[jan]) -> 0 | D131: =SUM(tbl_категорія_витрат_15[feb]) -> 0 | E131: =SUM(tbl_категорія_витрат_15[mar]) -> 0 | F131: =SUM(tbl_категорія_витрат_15[apr]) -> 0 | G131: =SUM(tbl_категорія_витрат_15[may]) -> 0 | H131: =SUM(tbl_категорія_витрат_15[jun]) -> 0 | I131: =SUM(tbl_категорія_витрат_15[jul]) -> 0 | J131: =SUM(tbl_категорія_витрат_15[aug]) -> 0 | K131: =SUM(tbl_категорія_витрат_15[sep]) -> 0 | L131: =SUM(tbl_категорія_витрат_15[oct]) -> 0 | M131: =SUM(tbl_категорія_витрат_15[nov]) -> 0 | N131: =SUM(tbl_категорія_витрат_15[dec]) -> 0 | O131: =SUM(tbl_категорія_витрат_15[year]) -> 0 | P131: =tbl_категорія_витрат_15[[#Totals],[year]]/12 -> 0

Sheet Настроювання
B1: СІМ’Я КОВАЛЕНКІВ 2012 Р.
B2: дохід | D2: витрати
B3: заробітна плата
B4: відсотковий дохід | D4: житло | F4: житло | H4: щоденні потреби | J4: діти
B5: дивіденди | D5: щоденні потреби | F5: кредит або орендна плата | H5: бакалія | J5: лікування
B6: отримані подарунки | D6: діти | F6: електроенергія | H6: особисті потреби | J6: одяг
B7: виплати та компенсації | D7: транспорт | F7: газ | H7: одяг | J7: плата за навчання
B8: субвенції із заощаджень | D8: лікування | F8: вода, каналізація та вивіз сміття | H8: послуги із прибирання | J8: шкільний обід
B9: інше | D9: страхування | F9: телефон | H9: ресторан або їдальня | J9: шкільне приладдя
D10: освіта | F10: кабельне або супутникове телебачення | H10: хімчистка | J10: оплата послуг няні
D11: добродійність | F11: Інтернет | H11: салон краси та перукарня | J11: іграшки та ігри
D12: заощадження | F12: меблі та побутова техніка | H12: інше | J12: інше
D13: грошові зобов’язання | F13: газон або сад
D14: розваги | F14: утримання будинку
D15: домашні улюбленці | F15: ремонт
D16: передплати | F16: удосконалення
D17: відпустка | F17: інше
D18: різне
F20: транспорт | H20: лікування | J20: страхування
F21: витрати на утримання авто | H21: терапевт або стоматолог | J21: авто
F22: бензин | H22: лікування та ліки | J22: здоров’я
F23: автобус, таксі або потяг | H23: абонементи в оздоровчі клуби | J23: нерухомість
F24: ремонт | H24: непередбачувані випадки | J24: життя
F25: реєстрація | H25: інше | J25: інше
F26: інше
F29: освіта | H29: добродійність | J29: заощадження
F30: плата за навчання | H30: подарунки | J30: страховий фонд
F31: книжки | H31: пожертви | J31: перерахування до заощаджень
F32: уроки музики | H32: церковні пожертви | J32: пенсія
F33: інше | H33: інше | J33: інвестиції
J34: коледж
J35: інше
F38: грошові зобов’язання | H38: розваги | J38: домашні улюбленці
F39: позика на навчання | H39: відео | J39: корм
F40: інші позики | H40: музика | J40: лікування
F41: кредитна картка 1 | H41: ігри | J41: іграшки та інші товари
F42: кредитна картка 2 | H42: оренда | J42: інше
F43: кредитна картка 3 | H43: кіно або театр
F44: аліменти або утримання дитини | H44: концерти
F45: федеральні податки | H45: книжки
F46: податок на нерухомість | H46: хобі
F47: місцеві податки | H47: фото
F48: внески домовласникам | H48: спорт
F49: судові витрати | H49: відпочинок на природі
F50: інше | H50: іграшки та дрібнички
H51: інше
F53: передплати | H53: відпустка | J53: різне
F54: газети | H54: подорожі | J54: банківські витрати
F55: журнали | H55: проживання | J55: поштові витрати
F56: внески | H56: харчування | J56: інше
F57: абонементи | H57: оренда авто
F58: інше | H58: розваги
H59: інше

Sheet Дані діаграми (hidden)
B1: *** Цей аркуш має бути прихований ***
B4: Period | C4: 3
C6: січ | D6: лют | E6: бер | F6: кві | G6: тра | H6: чер | I6: лип | J6: сер | K6: вер | L6: жов | M6: лис | N6: гру | O6: рік | P6: у середньому
B7: =LOWER(Бюджет!B127) ->  | C7: =SUM(tbl_категорія_витрат_15[jan]) -> 0 | D7: =SUM(tbl_категорія_витрат_15[feb]) -> 0 | E7: =SUM(tbl_категорія_витрат_15[mar]) -> 0 | F7: =SUM(tbl_категорія_витрат_15[apr]) -> 0 | G7: =SUM(tbl_категорія_витрат_15[may]) -> 0 | H7: =SUM(tbl_категорія_витрат_15[jun]) -> 0 | I7: =SUM(tbl_категорія_витрат_15[jul]) -> 0 | J7: =SUM(tbl_категорія_витрат_15[aug]) -> 0 | K7: =SUM(tbl_категорія_витрат_15[sep]) -> 0 | L7: =SUM(tbl_категорія_витрат_15[oct]) -> 0 | M7: =SUM(tbl_категорія_витрат_15[nov]) -> 0 | N7: =SUM(tbl_категорія_витрат_15[dec]) -> 0 | O7: =SUM(tbl_категорія_витрат_15[year]) -> 0 | P7: =SUM(tbl_категорія_витрат_15[avg]) -> 0
B8: =LOWER(Бюджет!B120) ->  | C8: =SUM(tbl_категорія_витрат_14[jan]) -> 0 | D8: =SUM(tbl_категорія_витрат_14[feb]) -> 0 | E8: =SUM(tbl_категорія_витрат_14[mar]) -> 0 | F8: =SUM(tbl_категорія_витрат_14[apr]) -> 0 | G8: =SUM(tbl_категорія_витрат_14[may]) -> 0 | H8: =SUM(tbl_категорія_витрат_14[jun]) -> 0 | I8: =SUM(tbl_категорія_витрат_14[jul]) -> 0 | J8: =SUM(tbl_категорія_витрат_14[aug]) -> 0 | K8: =SUM(tbl_категорія_витрат_14[sep]) -> 0 | L8: =SUM(tbl_категорія_витрат_14[oct]) -> 0 | M8: =SUM(tbl_категорія_витрат_14[nov]) -> 0 | N8: =SUM(tbl_категорія_витрат_14[dec]) -> 0 | O8: =SUM(tbl_категорія_витрат_14[year]) -> 0 | P8: =SUM(tbl_категорія_витрат_14[avg]) -> 0
B9: =LOWER(Бюджет!B113) ->  | C9: =SUM(tbl_категорія_витрат_13[jan]) -> 0 | D9: =SUM(tbl_категорія_витрат_13[feb]) -> 0 | E9: =SUM(tbl_категорія_витрат_13[mar]) -> 0 | F9: =SUM(tbl_категорія_витрат_13[apr]) -> 0 | G9: =SUM(tbl_категорія_витрат_13[may]) -> 0 | H9: =SUM(tbl_категорія_витрат_13[jun]) -> 0 | I9: =SUM(tbl_категорія_витрат_13[jul]) -> 0 | J9: =SUM(tbl_категорія_витрат_13[aug]) -> 0 | K9: =SUM(tbl_категорія_витрат_13[sep]) -> 0 | L9: =SUM(tbl_категорія_витрат_13[oct]) -> 0 | M9: =SUM(tbl_категорія_витрат_13[nov]) -> 0 | N9: =SUM(tbl_категорія_витрат_13[dec]) -> 0 | O9: =SUM(tbl_категорія_витрат_13[year]) -> 0 | P9: =SUM(tbl_категорія_витрат_13[avg]) -> 0
B10: =LOWER(Бюджет!B106) ->  | C10: =SUM(tbl_категорія_витрат_12[jan]) -> 0 | D10: =SUM(tbl_категорія_витрат_12[feb]) -> 0 | E10: =SUM(tbl_категорія_витрат_12[mar]) -> 0 | F10: =SUM(tbl_категорія_витрат_12[apr]) -> 0 | G10: =SUM(tbl_категорія_витрат_12[may]) -> 0 | H10: =SUM(tbl_категорія_витрат_12[jun]) -> 0 | I10: =SUM(tbl_категорія_витрат_12[jul]) -> 0 | J10: =SUM(tbl_категорія_витрат_12[aug]) -> 0 | K10: =SUM(tbl_категорія_витрат_12[sep]) -> 0 | L10: =SUM(tbl_категорія_витрат_12[oct]) -> 0 | M10: =SUM(tbl_категорія_витрат_12[nov]) -> 0 | N10: =SUM(tbl_категорія_витрат_12[dec]) -> 0 | O10: =SUM(tbl_категорія_витрат_12[year]) -> 0 | P10: =SUM(tbl_категорія_витрат_12[avg]) -> 0
B11: =LOWER(Бюджет!B99) ->  | C11: =SUM(tbl_категорія_витрат_11[jan]) -> 0 | D11: =SUM(tbl_категорія_витрат_11[feb]) -> 0 | E11: =SUM(tbl_категорія_витрат_11[mar]) -> 0 | F11: =SUM(tbl_категорія_витрат_11[apr]) -> 0 | G11: =SUM(tbl_категорія_витрат_11[may]) -> 0 | H11: =SUM(tbl_категорія_витрат_11[jun]) -> 0 | I11: =SUM(tbl_категорія_витрат_11[jul]) -> 0 | J11: =SUM(tbl_категорія_витрат_11[aug]) -> 0 | K11: =SUM(tbl_категорія_витрат_11[sep]) -> 0 | L11: =SUM(tbl_категорія_витрат_11[oct]) -> 0 | M11: =SUM(tbl_категорія_витрат_11[nov]) -> 0 | N11: =SUM(tbl_категорія_витрат_11[dec]) -> 0 | O11: =SUM(tbl_категорія_витрат_11[year]) -> 0 | P11: =SUM(tbl_категорія_витрат_11[avg]) -> 0
B12: =LOWER(Бюджет!B92) -> грошові зобов’язання | C12: =SUM(tbl_категорія_витрат_10[jan]) -> 650 | D12: =SUM(tbl_категорія_витрат_10[feb]) -> 200 | E12: =SUM(tbl_категорія_витрат_10[mar]) -> 200 | F12: =SUM(tbl_категорія_витрат_10[apr]) -> 650 | G12: =SUM(tbl_категорія_витрат_10[may]) -> 200 | H12: =SUM(tbl_категорія_витрат_10[jun]) -> 200 | I12: =SUM(tbl_категорія_витрат_10[jul]) -> 650 | J12: =SUM(tbl_категорія_витрат_10[aug]) -> 200 | K12: =SUM(tbl_категорія_витрат_10[sep]) -> 200 | L12: =SUM(tbl_категорія_витрат_10[oct]) -> 650 | M12: =SUM(tbl_категорія_витрат_10[nov]) -> 200 | N12: =SUM(tbl_категорія_витрат_10[dec]) -> 200 | O12: =SUM(tbl_категорія_витрат_10[year]) -> 4,200 | P12: =SUM(tbl_категорія_витрат_10[avg]) -> 350
B13: =LOWER(Бюджет!B85) -> заощадження | C13: =SUM(tbl_категорія_витрат_09[jan]) -> 800 | D13: =SUM(tbl_категорія_витрат_09[feb]) -> 800 | E13: =SUM(tbl_категорія_витрат_09[mar]) -> 800 | F13: =SUM(tbl_категорія_витрат_09[apr]) -> 800 | G13: =SUM(tbl_категорія_витрат_09[may]) -> 800 | H13: =SUM(tbl_категорія_витрат_09[jun]) -> 500 | I13: =SUM(tbl_категорія_витрат_09[jul]) -> 500 | J13: =SUM(tbl_категорія_витрат_09[aug]) -> 500 | K13: =SUM(tbl_категорія_витрат_09[sep]) -> 800 | L13: =SUM(tbl_категорія_витрат_09[oct]) -> 800 | M13: =SUM(tbl_категорія_витрат_09[nov]) -> 800 | N13: =SUM(tbl_категорія_витрат_09[dec]) -> 800 | O13: =SUM(tbl_категорія_витрат_09[year]) -> 8,700 | P13: =SUM(tbl_категорія_витрат_09[avg]) -> 725
B14: =LOWER(Бюджет!B78) -> добродійність | C14: =SUM(tbl_категорія_витрат_08[jan]) -> 0 | D14: =SUM(tbl_категорія_витрат_08[feb]) -> 100 | E14: =SUM(tbl_категорія_витрат_08[mar]) -> 100 | F14: =SUM(tbl_категорія_витрат_08[apr]) -> 100 | G14: =SUM(tbl_категорія_витрат_08[may]) -> 100 | H14: =SUM(tbl_категорія_витрат_08[jun]) -> 100 | I14: =SUM(tbl_категорія_витрат_08[jul]) -> 100 | J14: =SUM(tbl_категорія_витрат_08[aug]) -> 100 | K14: =SUM(tbl_категорія_витрат_08[sep]) -> 100 | L14: =SUM(tbl_категорія_витрат_08[oct]) -> 100 | M14: =SUM(tbl_категорія_витрат_08[nov]) -> 100 | N14: =SUM(tbl_категорія_витрат_08[dec]) -> 100 | O14: =SUM(tbl_категорія_витрат_08[year]) -> 1,100 | P14: =SUM(tbl_категорія_витрат_08[avg]) -> 92
B15: =LOWER(Бюджет!B71) -> освіта | C15: =SUM(tbl_категорія_витрат_07[jan]) -> 0 | D15: =SUM(tbl_категорія_витрат_07[feb]) -> 0 | E15: =SUM(tbl_категорія_витрат_07[mar]) -> 625 | F15: =SUM(tbl_категорія_витрат_07[apr]) -> 0 | G15: =SUM(tbl_категорія_витрат_07[may]) -> 0 | H15: =SUM(tbl_категорія_витрат_07[jun]) -> 0 | I15: =SUM(tbl_категорія_витрат_07[jul]) -> 0 | J15: =SUM(tbl_категорія_витрат_07[aug]) -> 0 | K15: =SUM(tbl_категорія_витрат_07[sep]) -> 625 | L15: =SUM(tbl_категорія_витрат_07[oct]) -> 0 | M15: =SUM(tbl_категорія_витрат_07[nov]) -> 0 | N15: =SUM(tbl_категорія_витрат_07[dec]) -> 0 | O15: =SUM(tbl_категорія_витрат_07[year]) -> 1,250 | P15: =SUM(tbl_категорія_витрат_07[avg]) -> 104
B16: =LOWER(Бюджет!B64) -> страхування | C16: =SUM(tbl_категорія_витрат_06[jan]) -> 975 | D16: =SUM(tbl_категорія_витрат_06[feb]) -> 975 | E16: =SUM(tbl_категорія_витрат_06[mar]) -> 975 | F16: =SUM(tbl_категорія_витрат_06[apr]) -> 975 | G16: =SUM(tbl_категорія_витрат_06[may]) -> 975 | H16: =SUM(tbl_категорія_витрат_06[jun]) -> 975 | I16: =SUM(tbl_категорія_витрат_06[jul]) -> 975 | J16: =SUM(tbl_категорія_витрат_06[aug]) -> 975 | K16: =SUM(tbl_категорія_витрат_06[sep]) -> 975 | L16: =SUM(tbl_категорія_витрат_06[oct]) -> 975 | M16: =SUM(tbl_категорія_витрат_06[nov]) -> 975 | N16: =SUM(tbl_категорія_витрат_06[dec]) -> 975 | O16: =SUM(tbl_категорія_витрат_06[year]) -> 11,700 | P16: =SUM(tbl_категорія_витрат_06[avg]) -> 975
B17: =LOWER(Бюджет!B57) -> лікування | C17: =SUM(tbl_категорія_витрат_05[jan]) -> 25 | D17: =SUM(tbl_категорія_витрат_05[feb]) -> 60 | E17: =SUM(tbl_категорія_витрат_05[mar]) -> 175 | F17: =SUM(tbl_категорія_витрат_05[apr]) -> 25 | G17: =SUM(tbl_категорія_витрат_05[may]) -> 60 | H17: =SUM(tbl_категорія_витрат_05[jun]) -> 60 | I17: =SUM(tbl_категорія_витрат_05[jul]) -> 60 | J17: =SUM(tbl_категорія_витрат_05[aug]) -> 25 | K17: =SUM(tbl_категорія_витрат_05[sep]) -> 175 | L17: =SUM(tbl_категорія_витрат_05[oct]) -> 60 | M17: =SUM(tbl_категорія_витрат_05[nov]) -> 25 | N17: =SUM(tbl_категорія_витрат_05[dec]) -> 25 | O17: =SUM(tbl_категорія_витрат_05[year]) -> 775 | P17: =SUM(tbl_категорія_витрат_05[avg]) -> 65
B18: =LOWER(Бюджет!B48) -> транспорт | C18: =SUM(tbl_категорія_витрат_04[jan]) -> 1,110 | D18: =SUM(tbl_категорія_витрат_04[feb]) -> 1,025 | E18: =SUM(tbl_категорія_витрат_04[mar]) -> 925 | F18: =SUM(tbl_категорія_витрат_04[apr]) -> 1,025 | G18: =SUM(tbl_категорія_витрат_04[may]) -> 1,325 | H18: =SUM(tbl_категорія_витрат_04[jun]) -> 1,200 | I18: =SUM(tbl_категорія_витрат_04[jul]) -> 1,100 | J18: =SUM(tbl_категорія_витрат_04[aug]) -> 1,200 | K18: =SUM(tbl_категорія_витрат_04[sep]) -> 1,150 | L18: =SUM(tbl_категорія_витрат_04[oct]) -> 1,025 | M18: =SUM(tbl_категорія_витрат_04[nov]) -> 925 | N18: =SUM(tbl_категорія_витрат_04[dec]) -> 925 | O18: =SUM(tbl_категорія_витрат_04[year]) -> 12,935 | P18: =SUM(tbl_категорія_витрат_04[avg]) -> 1,078
B19: =LOWER(Бюджет!B39) -> діти | C19: =SUM(tbl_категорія_витрат_03[jan]) -> 2,373 | D19: =SUM(tbl_категорія_витрат_03[feb]) -> 500 | E19: =SUM(tbl_категорія_витрат_03[mar]) -> 350 | F19: =SUM(tbl_категорія_витрат_03[apr]) -> 250 | G19: =SUM(tbl_категорія_витрат_03[may]) -> 350 | H19: =SUM(tbl_категорія_витрат_03[jun]) -> 450 | I19: =SUM(tbl_категорія_витрат_03[jul]) -> 200 | J19: =SUM(tbl_категорія_витрат_03[aug]) -> 545 | K19: =SUM(tbl_категорія_витрат_03[sep]) -> 350 | L19: =SUM(tbl_категорія_витрат_03[oct]) -> 350 | M19: =SUM(tbl_категорія_витрат_03[nov]) -> 250 | N19: =SUM(tbl_категорія_витрат_03[dec]) -> 350 | O19: =SUM(tbl_категорія_витрат_03[year]) -> 6,318 | P19: =SUM(tbl_категорія_витрат_03[avg]) -> 527
B20: =LOWER(Бюджет!B30) -> щоденні потреби | C20: =SUM(tbl_категорія_витрат_02[jan]) -> 795 | D20: =SUM(tbl_категорія_витрат_02[feb]) -> 375 | E20: =SUM(tbl_категорія_витрат_02[mar]) -> 550 | F20: =SUM(tbl_категорія_витрат_02[apr]) -> 825 | G20: =SUM(tbl_категорія_витрат_02[may]) -> 500 | H20: =SUM(tbl_категорія_витрат_02[jun]) -> 450 | I20: =SUM(tbl_категорія_витрат_02[jul]) -> 875 | J20: =SUM(tbl_категорія_витрат_02[aug]) -> 475 | K20: =SUM(tbl_категорія_витрат_02[sep]) -> 400 | L20: =SUM(tbl_категорія_витрат_02[oct]) -> 825 | M20: =SUM(tbl_категорія_витрат_02[nov]) -> 575 | N20: =SUM(tbl_категорія_витрат_02[dec]) -> 375 | O20: =SUM(tbl_категорія_витрат_02[year]) -> 7,020 | P20: =SUM(tbl_категорія_витрат_02[avg]) -> 585
B21: =LOWER(Бюджет!B21) -> житло | C21: =SUM(tbl_категорія_витрат_01[jan]) -> 1,208 | D21: =SUM(tbl_категорія_витрат_01[feb]) -> 1,208 | E21: =SUM(tbl_категорія_витрат_01[mar]) -> 1,233 | F21: =SUM(tbl_категорія_витрат_01[apr]) -> 1,208 | G21: =SUM(tbl_категорія_витрат_01[may]) -> 1,158 | H21: =SUM(tbl_категорія_витрат_01[jun]) -> 1,183 | I21: =SUM(tbl_категорія_витрат_01[jul]) -> 1,283 | J21: =SUM(tbl_категорія_витрат_01[aug]) -> 1,333 | K21: =SUM(tbl_категорія_витрат_01[sep]) -> 1,208 | L21: =SUM(tbl_категорія_витрат_01[oct]) -> 1,158 | M21: =SUM(tbl_категорія_витрат_01[nov]) -> 1,208 | N21: =SUM(tbl_категорія_витрат_01[dec]) -> 1,208 | O21: =SUM(tbl_категорія_витрат_01[year]) -> 14,596 | P21: =SUM(tbl_категорія_витрат_01[avg]) -> 1,216
B26: Сукупний грошовий потік | C26: =SUM(Бюджет!$C$8:C$8) -> -3,714 | D26: =SUM(Бюджет!$C$8:D$8) -> 76 | E26: =SUM(Бюджет!$C$8:E$8) -> -1,857 | F26: =SUM(Бюджет!$C$8:F$8) -> -3,670 | G26: =SUM(Бюджет!$C$8:G$8) -> -138 | H26: =SUM(Бюджет!$C$8:H$8) -> -3,731 | I26: =SUM(Бюджет!$C$8:I$8) -> -7,974 | J26: =SUM(Бюджет!$C$8:J$8) -> -6,827 | K26: =SUM(Бюджет!$C$8:K$8) -> -8,810 | L26: =SUM(Бюджет!$C$8:L$8) -> -10,753 | M26: =SUM(Бюджет!$C$8:M$8) -> -6,811 | N26: =SUM(Бюджет!$C$8:N$8) -> -7,769 | O26: =SUM(Бюджет!$C$8:O$8) -> -15,538
B28: Позитивний грошовий потік за рік | C28: =IF(Бюджет!C$8<0,NA(),IF(період+2<>COLUMN(Бюджет!C$8),NA(),Бюджет!C$8)) ->  | D28: =IF(Бюджет!D$8<0,NA(),IF(період+2<>COLUMN(Бюджет!D$8),NA(),Бюджет!D$8)) ->  | E28: =IF(Бюджет!E$8<0,NA(),IF(період+2<>COLUMN(Бюджет!E$8),NA(),Бюджет!E$8)) ->  | F28: =IF(Бюджет!F$8<0,NA(),IF(період+2<>COLUMN(Бюджет!F$8),NA(),Бюджет!F$8)) ->  | G28: =IF(Бюджет!G$8<0,NA(),IF(період+2<>COLUMN(Бюджет!G$8),NA(),Бюджет!G$8)) ->  | H28: =IF(Бюджет!H$8<0,NA(),IF(період+2<>COLUMN(Бюджет!H$8),NA(),Бюджет!H$8)) ->  | I28: =IF(Бюджет!I$8<0,NA(),IF(період+2<>COLUMN(Бюджет!I$8),NA(),Бюджет!I$8)) ->  | J28: =IF(Бюджет!J$8<0,NA(),IF(період+2<>COLUMN(Бюджет!J$8),NA(),Бюджет!J$8)) ->  | K28: =IF(Бюджет!K$8<0,NA(),IF(період+2<>COLUMN(Бюджет!K$8),NA(),Бюджет!K$8)) ->  | L28: =IF(Бюджет!L$8<0,NA(),IF(період+2<>COLUMN(Бюджет!L$8),NA(),Бюджет!L$8)) ->  | M28: =IF(Бюджет!M$8<0,NA(),IF(період+2<>COLUMN(Бюджет!M$8),NA(),Бюджет!M$8)) ->  | N28: =IF(Бюджет!N$8<0,NA(),IF(період+2<>COLUMN(Бюджет!N$8),NA(),Бюджет!N$8)) ->  | O28: =IF(Бюджет!O$8<0,NA(),IF(період+2<>COLUMN(Бюджет!O$8),NA(),Бюджет!O$8)) -> 
B29: Негативний грошовий потік за рік | C29: =IF(Бюджет!C$8>=0,NA(),IF(період+2<>COLUMN(Бюджет!C$8),NA(),Бюджет!C$8)) ->  | D29: =IF(Бюджет!D$8>=0,NA(),IF(період+2<>COLUMN(Бюджет!D$8),NA(),Бюджет!D$8)) ->  | E29: =IF(Бюджет!E$8>=0,NA(),IF(період+2<>COLUMN(Бюджет!E$8),NA(),Бюджет!E$8)) -> -1,933 | F29: =IF(Бюджет!F$8>=0,NA(),IF(період+2<>COLUMN(Бюджет!F$8),NA(),Бюджет!F$8)) ->  | G29: =IF(Бюджет!G$8>=0,NA(),IF(період+2<>COLUMN(Бюджет!G$8),NA(),Бюджет!G$8)) ->  | H29: =IF(Бюджет!H$8>=0,NA(),IF(період+2<>COLUMN(Бюджет!H$8),NA(),Бюджет!H$8)) ->  | I29: =IF(Бюджет!I$8>=0,NA(),IF(період+2<>COLUMN(Бюджет!I$8),NA(),Бюджет!I$8)) ->  | J29: =IF(Бюджет!J$8>=0,NA(),IF(період+2<>COLUMN(Бюджет!J$8),NA(),Бюджет!J$8)) ->  | K29: =IF(Бюджет!K$8>=0,NA(),IF(період+2<>COLUMN(Бюджет!K$8),NA(),Бюджет!K$8)) ->  | L29: =IF(Бюджет!L$8>=0,NA(),IF(період+2<>COLUMN(Бюджет!L$8),NA(),Бюджет!L$8)) ->  | M29: =IF(Бюджет!M$8>=0,NA(),IF(період+2<>COLUMN(Бюджет!M$8),NA(),Бюджет!M$8)) ->  | N29: =IF(Бюджет!N$8>=0,NA(),IF(період+2<>COLUMN(Бюджет!N$8),NA(),Бюджет!N$8)) ->  | O29: =IF(Бюджет!O$8>=0,NA(),IF(період+2<>COLUMN(Бюджет!O$8),NA(),Бюджет!O$8)) -> 
B37: =LOWER(відобразити_тривалий_період) -> березень
B38: =відобразити_тривалий_період & " дохід" -> березень дохід | C38: =INDEX(Бюджет!$C$6:$P$6,,період) -> 4,000₴
B39: =відобразити_тривалий_період & " Витрати: " & TEXT(INDEX(Бюджет!$C$7:$P$7,,період),"#,##0₴") -> березень Витрати: 5933,0₴ | C39: =INDEX(Бюджет!$C$7:$P$7,,період) -> 5,933₴
B40: =відобразити_тривалий_період & " рух готівки" -> березень рух готівки | C40: =ABS(INDEX(Бюджет!$C$8:$P$8,,період)) -> 1,933₴ | D40: =REPT("-",INDEX(Бюджет!$C$8:$P$8,,період)<0) -> -
